Cogmind - Beta 16 @@@ ROGUE MODE // 2025.11.13 @ 16:59:44 Player: Star Result: Self-destructed Performance ------------- Evolutions (2) 1000 Regions Visited (3) 600 Robots Destroyed (27) 135 Value Destroyed (795) 795 Prototype IDs (8) 160 Alien Tech Used (0) 0 Bonus (0) 0 TOTAL SCORE: 2690 Bonus ------- None Cogmind --------- Core Integrity 15/550 Matter 272/300 Energy 72/100 System Corruption 0% Temperature Cool (0) Movement Core (100) Ox1 Location -8/Materials Parts ------- > --- POWER (1) -------- (None) > --- PROPULSION (3) --- (None) > --- UTILITY (5) ------ Small Storage Unit Hacking Suite > --- WEAPON (2) ------- (None) > --- INVENTORY (8) ---- Light Deuterium Engine Medium Storage Unit Compact Battery (200) Terrain Scan Processor Peak State ------------ > --- POWER ------------ Improved Ion Engine > --- PROPULSION ------- Improved Hover Unit Improved Hover Unit Improved Hover Unit > --- UTILITY ---------- Improved Heat Sink Small Storage Unit Sensor Array Signal Interpreter Hacking Suite > --- WEAPON ----------- Particle Gun Pulse Rifle > --- INVENTORY -------- Improved Ion Engine VTOL Module Disposable Heat Sink Medium Storage Unit Compact Battery Terrain Scan Processor Shock Rifle Grenade Launcher [Rating: 23] Favorites ----------- Power Ion Engine Engine Ion Engine Power Core Light Nuclear Core Propulsion Aluminum Leg Leg Aluminum Leg Hover Unit Improved Hover Unit Flight Unit VTOL Module Utility Small Storage Unit Device Sensor Array Storage Small Storage Unit Processor Signal Interpreter Hackware Hacking Suite Weapon Small Laser Energy Gun Small Laser Launcher Grenade Launcher Build | -11 -10 -9 -8 ------- Run | Yrd Mat Mat Mat Slots Evolved 4 | . . 2 2 Power . | . . . . Propulsion 1 | . . . 1 Utility 3 | . . 2 1 Weapon . | . . . . Parts Attached 25 | 6 2 8 9 Power 4 | 1 . 1 2 Engine 3 | 1 . 1 1 Core 1 | . . . 1 Reactor . | . . . . Propulsion 7 | 2 . 3 2 Treads . | . . . . Leg 2 | 2 . . . Wheel . | . . . . Hover 3 | . . 2 1 Flight 2 | . . 1 1 Utility 6 | 1 1 2 2 Device 3 | . . 1 2 Storage 1 | 1 . . . Processor 1 | . . 1 . Hackware 1 | . 1 . . Protection . | . . . . Artifact . | . . . . Weapon 8 | 2 1 2 3 Energy Gun 7 | 2 1 1 3 Energy Cannon . | . . . . Ballistic Gun . | . . . . Ballistic Cannon . | . . . . Launcher 1 | . . 1 . Special Weapon . | . . . . Impact Weapon . | . . . . Slashing Weapon . | . . . . Piercing Weapon . | . . . . Special Melee Weapon . | . . . . Unidentified Prototypes . | . . . . Parts Lost 18 | . . 3 15 Power 3 | . . 1 2 Propulsion 6 | . . 1 5 Utility 3 | . . . 3 Weapon 6 | . . 1 5 Highest Loss Streak 12 | . . 2 12 To Critical Strikes . | . . . . Average Backups 5 | . 1 6 7 Power . | . . . 1 Propulsion . | . . 1 . Utility 1 | . . 2 3 Weapon 1 | . 1 1 1 Tool/Special . | . . . . Unused Backups 6 | . . . 6 Power 2 | . . . 2 Propulsion . | . . . . Utility 4 | . . . 4 Weapon . | . . . . Tool/Special . | . . . . Average Slot Usage (%) 92 | . 98 91 89 Engine 10 | . 14 9 8 Leg 13 | . 28 14 . Hover 7 | . . 5 16 Flight 2 | . . 1 5 Device 8 | . . 10 14 Storage 11 | . 14 11 9 Processor 6 | . . 7 8 Hackware 10 | . 12 11 9 Energy Gun 19 | . 28 17 15 Launcher 1 | . . 1 1 Peak Build Rating 23 | 6 9 15 23 Average Rating 13 | 3 8 11 19 On Entrance 7 | . 6 9 14 Avg Prop Armor Cover (%) 6 | . . 6 6 Naked Turns . | . . . . Heaviest Build 20 | 13 13 14 20 Greatest Support 24 | 20 20 20 24 Greatest Overweight (x) 4 | . . 2 4 Average Overweight (x) . | . . . . Largest Inventory Capacity 8 | 8 8 8 8 Average Capacity 7 | 6 8 8 8 Most Carried 8 | 3 3 8 8 Average Carried 5 | . 1 6 7 Final Capacity 8 | 8 8 8 8 Final Carried 8 | . 3 8 4 Class Distribution -------------------- 73% | Mutant 14% | Scientist-Mutant 11% | Scavenger-Mutant Dominant Class ---------------- Mutant | -10/Materials Mutant | -9/Materials Scientist-Mutant | -8/Materials Resources | -11 -10 -9 -8 ----------- Run | Yrd Mat Mat Mat Matter Collected 510 | 163 114 130 103 Remotely . | . . . . Salvage Created 799 | . 206 332 261 Parts 44 | . 9 19 16 Haulers Intercepted . | . . . . Recyclers Shooed . | . . . . Parts Field Recycled . | . . . . Retrieved Matter . | . . . . Parts Self-Destructed . | . . . . Prevented . | . . . . Parts Restored . | . . . . Kills | -11 -10 -9 -8 ------- Run | Yrd Mat Mat Mat Combat Hostiles Destroyed 22 | . 4 10 8 Guns 17 | . 4 7 6 AOE 5 | . . 3 2 Classes Destroyed 6 | . 2 3 1 Operator 2 | . 2 . . Watcher 3 | . . 2 1 Swarmer 6 | . . 3 3 Grunt 12 | . 4 6 2 Sentry 3 | . . 1 2 Specialist 1 | . . . 1 Best Kill Streak 4 | . 2 4 3 Combat Bots Only 4 | . 2 4 3 Max Kills in Single Turn 2 | . 1 2 1 Gunslinging . | . . . . Exploded 2 | . . 2 1 Melee . | . . . . Uniques/NPCs Destroyed . | . . . . Combat | -11 -10 -9 -8 -------- Run | Yrd Mat Mat Mat Hostile Shots Fired 218 | . 31 67 120 Missed 75 | . 6 22 47 Hits 143 | . 25 45 73 Projectile 143 | . 25 45 73 AOE 1 | . 1 . . Critical Strikes 1 | . . . 1 Damage Taken 2101 | . 427 534 1140 Core 918 | . 240 143 535 Absorbed by Shields . | . . . . Core Remaining (%) 56 | 100 4 64 . Volleys Fired 95 | . 30 37 28 Largest 2 | . 2 2 2 Hottest 128 | . 90 96 128 Shots Fired 160 | . 58 56 46 Gun 154 | . 58 52 44 Cannon . | . . . . Launcher 6 | . . 4 2 Special . | . . . . Kinetic . | . . . . Thermal 131 | . 39 51 41 Explosive 6 | . . 4 2 Electromagnetic 23 | . 19 1 3 Robot Hit Streak 14 | . 8 10 14 Robot Miss Streak 4 | . 4 2 2 Penetration Max . | . . . . Secondary Targets . | . . . . Shots Hit Robots 111 | . 36 43 32 Core Hits 47 | . 11 19 17 Critical Kills . | . . . . Critical Parts Destroyed . | . . . . Critical Strikes 3 | . . 2 1 Burn 3 | . . 2 1 Melee Attacks . | . . . . Impact . | . . . . Slashing . | . . . . Piercing . | . . . . Sneak Attacks . | . . . . Combat Hostiles . | . . . . Follow-up Attacks . | . . . . Damage Inflicted 1828 | . 454 724 650 Guns 1466 | . 444 517 505 Cannons . | . . . . Explosions 352 | . . 207 145 Melee . | . . . . Ramming 10 | . 10 . . Kinetic . | . . . . Thermal 1285 | . 281 517 487 Explosive 352 | . . 207 145 Electromagnetic 181 | . 163 . 18 Impact . | . . . . Slashing . | . . . . Piercing . | . . . . Highest Corruption 1 | . 1 1 . Average Corruption 1 | . 1 1 . Corruption Purged . | . . . . Corruption Blocked . | . . . . Effects 4 | . 2 2 . Message Errors 2 | . 1 1 . Matter Fused 1 | . . 1 . Alerts 1 | . 1 . . Overload Shots . | . . . . Overflow Damage 10 | . . 10 . Projectiles . | . . . . Explosions 10 | . . 10 . Melee . | . . . . Knockbacks . | . . . . Impact . | . . . . Kinetic . | . . . . Secondary . | . . . . Self-Inflicted Damage . | . . . . Shots . | . . . . Rammed . | . . . . Targets Rammed 5 | . 5 . . Kicked 5 | . 5 . . Crushed . | . . . . Highest Temperature 336 | . 336 126 195 Average Temperature 68 | . 97 42 63 Received Heat Transfer 444 | . 162 201 81 Siege Activations . | . . . . Martial Activations . | . . . . Shielding Activations . | . . . . Robots Disrupted . | . . . . Combat Hostiles . | . . . . Robots Corrupted . | . . . . Combat Hostiles . | . . . . Parts Fried . | . . . . Impact Corruptions . | . . . . Robots Melted . | . . . . Combat Hostiles . | . . . . Parts Melted 3 | . 1 . 2 Heat Transferred 3366 | . 685 1497 1184 Parts Sabotaged . | . . . . Parts Stolen . | . . . . Parts Stripped . | . . . . Power Chain Reactions . | . . . . Alert | -11 -10 -9 -8 ------- Run | Yrd Mat Mat Mat Maximum Alert Level . | . . . . Low Security (%) 100 | 100 100 100 100 Level 1 . | . . . . Level 2 . | . . . . Level 3 . | . . . . Level 4 . | . . . . Level 5 . | . . . . High Security . | . . . . Max Security . | . . . . Peak Influence 191 | . 80 191 112 Initial 70 | . . 29 70 Average 49 | . 19 64 61 Influence Increases 796 | . 178 379 239 Destroy 0b10 Robot/C 440 | . 80 200 160 Destroy 0b10 Robot/NC 25 | . 10 10 5 Destroy Leader 106 | . 20 44 42 Successful Hack 28 | . 8 16 4 Disable Machine 30 | . 15 . 15 Destroy Structure 32 | . . 19 13 Lose Combat Pursuer 135 | . 45 90 . Influence Decreases 796 | . 106 284 406 Entered New Map 140 | . . 43 97 Time Decay 523 | . 106 211 206 Lost Part 133 | . . 30 103 Squads Dispatched 9 | . 4 3 2 Investigation 5 | . 2 3 . Extermination . | . . . . Reinforcement 4 | . 2 . 2 Assault . | . . . . Garrison . | . . . . Intercept . | . . . . Searches Triggered . | . . . . Construction Impeded . | . . . . Haulers Reinforced . | . . . . Active Scanning Responses . | . . . . Cargo Convoy Interrupts . | . . . . Stealth | -11 -10 -9 -8 --------- Run | Yrd Mat Mat Mat Distress Signals 3 | . 1 2 . Communications Jammed . | . . . . Distress Signals . | . . . . Times Spotted 54 | . 14 26 14 Peak Tracking Total 6 | . 4 6 4 Tactical Retreats 4 | . 1 3 . Traps | -11 -10 -9 -8 ------- Run | Yrd Mat Mat Mat Traps Triggered 4 | . 1 . 3 Indirectly . | . . . . Trap Hack Attempts . | . . . . Triggered . | . . . . Disarmed . | . . . . Reprogrammed . | . . . . Reused . | . . . . Traps Extracted . | . . . . Installed . | . . . . Triggered . | . . . . Machines | -11 -10 -9 -8 ---------- Run | Yrd Mat Mat Mat Machines Disabled 2 | . 1 . 1 Max in Single Turn 1 | . 1 . 1 Machines Repaired . | . . . . Machines Dismantled . | . . . . Machines Sabotaged . | . . . . Overloaded Fab Kills . | . . . . Hacking | -11 -10 -9 -8 --------- Run | Yrd Mat Mat Mat Machines Accessed 19 | . 7 8 4 Terminals 13 | . 4 6 3 Fabricators . | . . . . Repair Stations 1 | . 1 . . Recycling Units 2 | . 2 . . Scanalyzers 3 | . . 2 1 Garrison Access . | . . . . Total Hacks 47 | . 12 24 11 Successful 36 | . 11 17 8 Failed 10 | . 1 6 3 Catastrophic 2 | . . 2 . Database Lockouts 1 | . . 1 . Manual 17 | . 6 7 4 Terminals 33 | . 8 18 7 Fabricators . | . . . . Repair Stations 1 | . 1 . . Recycling Units 3 | . 3 . . Scanalyzers 10 | . . 6 4 Garrison Access . | . . . . Terminal Hacks 11 | . 3 6 2 Record 1 | . . 1 . Prototype ID Bank 5 | . 2 1 2 Level Access Points 1 | . . 1 . Terminal Index 1 | . . 1 . Locate Traps 1 | . . 1 . Hauler Manifests 1 | . . 1 . Registered Components 1 | . 1 . . Fabricator Hacks . | . . . . Repair Station Hacks . | . . . . Recycling Unit Hacks 2 | . 2 . . Report Inventory 2 | . 2 . . Scanalyzer 9 | . . 5 4 Insert Component 1 | . . 1 . Analyze 1 | . . 1 . Retrieve Study 7 | . . 3 4 Garrison Access Hacks . | . . . . Unauthorized Hacks 13 | . 5 6 2 Terminals 12 | . 4 6 2 Botnet 12 | . 4 6 2 Fabricators . | . . . . Repair Stations 1 | . 1 . . Patch 1 | . 1 . . Recycling Units . | . . . . Scanalyzers . | . . . . Garrison Access . | . . . . Data Cores Recovered . | . . . . Used . | . . . . Hacking Detections 11 | . 1 7 3 Full Trace Events 4 | . 1 3 . Feedback Events 1 | . . 1 . Corruption 1 | . . 1 . Feedback Blocked . | . . . . Robot Schematics Acquired . | . . . . Robots Built . | . . . . Authchips . | . . . . Time . | . . . . Total Robot Build Rating . | . . . . Part Schematics Acquired 1 | . . 1 . Parts Built . | . . . . Authchips . | . . . . Time . | . . . . Total Part Build Rating . | . . . . Part Studies Acquired 7 | . . 3 4 Parts Repaired . | . . . . Time . | . . . . Parts Recycled . | . . . . Recycled Matter . | . . . . Retrieved Matter . | . . . . Retrieved Components . | . . . . Parts Scanalyzed 1 | . . 1 . Part Schematics Acquired 1 | . . 1 . Parts Damaged . | . . . . Bothacking | -11 -10 -9 -8 ------------ Run | Yrd Mat Mat Mat Used RIF Installer . | . . . . Robots Hacked . | . . . . Non-combat . | . . . . Combat . | . . . . Robot Hacks Applied . | . . . . Relay Couplers Released . | . . . . Fabnet Peak Effective % . | . . . . Robots Rewired . | . . . . Allies Hacked . | . . . . Hacks Repelled . | . . . . Allies | -11 -10 -9 -8 -------- Run | Yrd Mat Mat Mat Total Allies . | . . . . Largest Group . | . . . . Highest-Rated Group . | . . . . Highest-Rated Ally . | . . . . Total Orders . | . . . . Ally Attacks . | . . . . Total Damage . | . . . . Kills . | . . . . Allies Corrupted . | . . . . Allies Melted . | . . . . Intel | -11 -10 -9 -8 ------- Run | Yrd Mat Mat Mat Active Infowar (turns) 1032 | . . 596 436 Sensors 1032 | . . 596 436 Robot Analysis Total . | . . . . Derelict Logs Recovered . | . . . . Drone Launches . | . . . . Drone Recoveries . | . . . . Exploration | -11 -10 -9 -8 ------------- Run | Yrd Mat Mat Mat Turns Passed 1547 | 46 405 633 463 Spaces Moved 1088 | 34 243 444 367 Core 19 | 8 . . 11 Treads . | . . . . Legs 518 | 26 243 249 . Wheels . | . . . . Hover 498 | . . 189 309 Flight 53 | . . 6 47 Fastest Speed 34 | 50 120 56 34 Average Speed 99 | 103 120 98 84 Slowest Speed 250 | 120 120 205 250 Overloaded Moves . | . . . . Propulsion Burnouts . | . . . . Robots Hopped . | . . . . Potential Cave-ins . | . . . . Cave-ins Triggered . | . . . . Exploration Rate (%) 32 | 4 48 53 25 Regions Visited 3 Branch Regions . Pre-discovered Areas . | . . . . Known Exits Taken 1 | . . 1 . Unknown Exits Taken 2 | 1 1 . . Scrap Searched . | . . . . Spaces Dug . | . . . . Terrain Destroyed 42 | . . 29 13 Melee . | . . . . Projectile . | . . . . AOE 42 | . . 29 13 Terrain Rammed . | . . . . Walls Destroyed . | . . . . Machines Disabled . | . . . . Actions | -11 -10 -9 -8 --------- Run | Yrd Mat Mat Mat Total 1392 | 45 297 580 470 Wait 132 | . 14 76 42 Move 1085 | 33 242 443 367 Hop . | . . . . Pick Up 31 | 6 4 11 10 Fast Attach 5 | . . . 5 Attach 21 | 6 1 5 9 Detach 1 | . . 1 . Swap 10 | . 1 5 4 Drop 7 | . . 2 5 Fire 95 | . 30 37 28 Melee . | . . . . Ram . | . . . . Kick 5 | . 5 . . Crush . | . . . . Escape Stasis . | . . . . Rewire . | . . . . Trap . | . . . . Miscellaneous . | . . . . Route ------- -11/Scrapyard -10/Materials (discovered 2 exits: *Mat x2) -9/Materials (discovered 6 exits: *Mat x3 / [*Min x2] / [*Sto]) -8/Materials (discovered 1 exit: [*Fac]) History --------- Turn | Location | Event 4 | -11/Scrapyard | Discovered new exit (range 16) 47 | -11/Scrapyard | Entered Materials 184 | -10/Materials | Core integrity fell below 50% 204 | -10/Materials | Discovered new exit (range 16) 309 | -10/Materials | Build established: Mutant 364 | -10/Materials | Discovered new exit (range 16) 439 | -10/Materials | Core integrity fell below 20% 452 | -10/Materials | Entered another Materials area 452 | -9/Materials | Evolved 2 slots: Utility x2 454 | -9/Materials | Discovered new exit (range 14) 573 | -9/Materials | Identified exit to Materials 816 | -9/Materials | Central database locked down 957 | -9/Materials | Discovered new exit (range 12) 1050 | -9/Materials | Discovered new exit (range 5) 1085 | -9/Materials | Entered another Materials area 1085 | -8/Materials | Evolved 2 slots: Propulsion x1, Utility x1 1495 | -8/Materials | Discovered new exit (range 11) 1520 | -8/Materials | Core integrity fell below 50% 1531 | -8/Materials | Core integrity fell below 20% 1548 | -8/Materials | Self-destructed Last Messages --------------- 01517_ VTOL Module+ destroyed. 01519_ X-57 Shotgunner destroyed. 01519_ Grenade Launcher destroyed. 01519_ H-61 Shepherd calls for reinforcements. 01519_ ALERT: Hostile activity reported, dispatching reinforcements to area. 01519_ Knocked back. 01521_ Sensor Array destroyed. 01521_ Particle Gun+ destroyed. 01523_ Imp. Heat Sink destroyed. 01525_ Acquired 8 matter. 01525_ Knocked back. 01528_ Slug penetrates Wall. 01530_ Signal Interpreter destroyed. 01530_ Critical hit (Blast). 01533_ Penetrated by Slug. 01533_ Lgt. Nuclear Core destroyed. 01533_ Knocked back. 01534_ Acquired 1 matter. 01547_ Shock Rifle destroyed. Map ----- +----------------------------------------------------+ | ?????????????????????????????????????????????????? | | ?????????????????????????????????????????????????? | | ?????????????????????????????????????????????????? | | ?????????????????????????????????????????????????? | | ?????################????????????????????????????? | | ?????# ## T #????????????????????????????? | | ?????# ## #????????????????####????????? | | ###??# ## """ ##########??????? #????????? | | #### ## """ #/ #??????? < #????????? | | # # ?# """ # !#??????? #????????? | | # # ???# # #??????+ +????????? | | " + ##+#########+### #??????# #????????? | | " # # #??????# #????????? | | " # + #??????# #????????? | | ## #####+##### # ! #??????# #####????? | | ## ## # # !! #?????## ]]#????? | | #### ## """ # # !! #????# ]]#????? | | ???# ## "T" # ############## ==#????? | | ???# ## + ### H %! ==#????? | | ???# ###########+###; !!#????? | | ???# #????# "; %% !!#????? | | ???# #????# / """ ## xg####"### #####????? | | #### #????# """ ## # = # #?????? | | # #????#! """ ## # #? #?????? | | " # #????# ## + #? * #?????? | | " # #????# """ ## @# #?? #?????? | | " # #????#! """ ## ########?? #?????? | | # #????# """ ## ## #??? #?????? | | " # #????# # # #??? =#?????? | | " # #????########## # ! #???? #?????? | | " + #?????????????# " + #????####???????? | | # #?????????????# # """ #???????????????? | | #### #?????????????# # """ #???????????????? | | # #?????????????##^^ ## """ #???????????????? | | "" # #??????????????# ^## #???????????????? | | "" # #??????????????# ## ""#???????????????? | | "" #= %#??????????????# ## T"#???????????????? | | %+ * #??????????????# ## ""#???????????????? | | ! #% !#??????????????# ## #???????????????? | | # #??????????????#[ ########???????????????? | | !# #??????????????# #?????????????????????? | | # #??????????????# ##?????????????????????? | | #### #?????????????## #??????????????????????? | | ???# #?????????????## #??????????????????????? | | ???# ###########???## #??????????????????????? | | ???# # #????#! #??????????????????????? | | ???# # #???## ! ##?????????????????????? | | #### # #???#! #?????????????????????? | | # =#####%=* #?????????????????????? | | + [+% [= #?????????????????????? | +----------------------------------------------------+ Best States ------------- Heat Dissipation 45 Coolant Potential 50 Energy Generation 14 Energy Capacity 265 Matter Stores 300 Matter Capacity 300 Sight Range 16 Robot Scan Range 14 Terrain Scan Density 10 Evasion (%) 55 Offensive Hacking 10 Item Schematics ----------------- Disposable Heat Sink | -9/Materials | Scanalyzed Robot Schematics ------------------ None Fabricated ------------ Nothing Repaired ---------- Nothing Studied --------- Beam Rifle | -9/Materials | Hacked VTOL Module | -9/Materials | Hacked Lgt. Ion Engine | -9/Materials | Hacked Imp. Hover Unit | -8/Materials | Hacked Pulse Rifle | -8/Materials | Hacked Imp. Ion Engine | -8/Materials | Hacked Particle Gun | -8/Materials | Hacked Alien Tech Used ----------------- None Achievements -------------- Brute Force Quantum Hacking True Hacker Challenges ------------ None Game ------ Seed CargoRecyclingClaws Manual? 0 Play Time 00:27:17 Cumulative 9.7 hours Start 2025.11.13 @ 16:01:58 End 2025.11.13 @ 16:59:44 Sessions 1 Manual Loads 0 Difficulty Rogue Special Mode None Game No. 27 Rogue 27 Adventurer 0 Explorer 0 Win Type - Total 0 Types 0/0/0/0/0/0/0/0/0/0 Lore% 10 Gallery% 14 Achievement% 13 Wizard Run 0 Options --------- Layout 0 ASCII 0 Keyboard 0 Movement Mouse Keybinds 0 Fullscreen 2 Font 24/Smallcaps Map View 76x50 Zoom Use 0% Tactical HUD 1 Map Filters NONE Filters NONE Steam 1 RUN: 32c8731b-af74-42a4-8f1a-08f861078569